[Event "*** Titled Tuesday Blitz"]
[Site "Chess.com"]
[Date "2020.05.05"]
[Round "4"]
[White "Sweafty"]
[Black "Grandelicious"]
[Result "1-0"]
[WhiteElo "2524"]
[BlackElo "2742"]
[TimeControl "180+1"]
[EndTime "10:41:04 PDT"]
[Termination "Sweafty won on time"]

1. Nf3 {[%clk 0:03:00.9]} 1... c5 {[%clk 0:02:59.4]} 2. c4 {[%clk 0:03:00.6]}
2... Nf6 {[%clk 0:02:54.3]} 3. b3 {[%clk 0:02:59.6]} 3... b6 {[%clk 0:02:51.9]}
4. g3 {[%clk 0:02:59.4]} 4... Bb7 {[%clk 0:02:51.5]} 5. Bg2 {[%clk 0:02:59.8]}
5... e6 {[%clk 0:02:46.6]} 6. O-O {[%clk 0:02:59.1]} 6... Be7 {[%clk 0:02:46.6]}
7. Bb2 {[%clk 0:02:59]} 7... O-O {[%clk 0:02:46.4]} 8. e3 {[%clk 0:02:59.1]}
8... a6 {[%clk 0:02:39.4]} 9. Nc3 {[%clk 0:02:57.8]} 9... d6 {[%clk 0:02:36.5]}
10. Qe2 {[%clk 0:02:49.6]} 10... Nbd7 {[%clk 0:02:32.3]} 11. Rad1 {[%clk
0:02:49.4]} 11... b5 {[%clk 0:02:28.8]} 12. d4 {[%clk 0:02:23.8]} 12... bxc4
{[%clk 0:02:27.7]} 13. dxc5 {[%clk 0:02:06.6]} 13... Nxc5 {[%clk 0:02:15.9]} 14.
Qxc4 {[%clk 0:02:03.3]} 14... Qb6 {[%clk 0:01:56.5]} 15. Na4 {[%clk 0:01:34.1]}
15... Nxa4 {[%clk 0:01:41.9]} 16. Qxa4 {[%clk 0:01:35]} 16... Bc6 {[%clk
0:01:31.6]} 17. Qf4 {[%clk 0:01:31.9]} 17... Qb7 {[%clk 0:01:23]} 18. Bxf6
{[%clk 0:00:57.8]} 18... Bxf6 {[%clk 0:00:55]} 19. Rxd6 {[%clk 0:00:56.1]} 19...
Rad8 {[%clk 0:00:50.2]} 20. Rxd8 {[%clk 0:00:51.5]} 20... Rxd8 {[%clk
0:00:51.1]} 21. Nh4 {[%clk 0:00:43.5]} 21... Bxg2 {[%clk 0:00:44.5]} 22. Nxg2
{[%clk 0:00:43.5]} 22... Rd2 {[%clk 0:00:36.8]} 23. Qa4 {[%clk 0:00:41.8]} 23...
g6 {[%clk 0:00:23.5]} 24. Nf4 {[%clk 0:00:42]} 24... Qf3 {[%clk 0:00:18.4]} 25.
Qxa6 {[%clk 0:00:39.1]} 25... g5 {[%clk 0:00:15.6]} 26. Ng2 {[%clk 0:00:27.1]}
26... h5 {[%clk 0:00:15.7]} 27. Qa5 {[%clk 0:00:21.6]} 27... Rb2 {[%clk
0:00:13.7]} 28. Ne1 {[%clk 0:00:21.2]} 28... Qe2 {[%clk 0:00:11.5]} 29. Qa8+
{[%clk 0:00:18.6]} 29... Kg7 {[%clk 0:00:11.3]} 30. Qe4 {[%clk 0:00:16.6]} 30...
Rxa2 {[%clk 0:00:07.7]} 31. Nd3 {[%clk 0:00:17.1]} 31... Ra3 {[%clk 0:00:05.6]}
32. Ne5 {[%clk 0:00:12.2]} 32... Rxb3 {[%clk 0:00:04.5]} 33. Nd7 {[%clk
0:00:12.8]} 33... Qd3 {[%clk 0:00:03.4]} 34. Nxf6 {[%clk 0:00:12.3]} 34... Kxf6
{[%clk 0:00:03.1]} 35. Qa8 {[%clk 0:00:12.3]} 35... Rb1 {[%clk 0:00:01.7]} 36.
Qh8+ {[%clk 0:00:12]} 36... Ke7 {[%clk 0:00:01.8]} 37. Rxb1 {[%clk 0:00:10.3]}
37... Qxb1+ {[%clk 0:00:02.7]} 38. Kg2 {[%clk 0:00:11.1]} 38... Qe4+ {[%clk
0:00:03.2]} 39. Kg1 {[%clk 0:00:11.7]} 39... Qf3 {[%clk 0:00:02.6]} 40. Qd4
{[%clk 0:00:03.8]} 1-0

[Event "*** Titled Tuesday Blitz"]
[Site "Chess.com"]
[Date "2020.05.05"]
[Round "4"]
[White "ALeks_Ivlev"]
[Black "floplover"]
[Result "1-0"]
[WhiteElo "2573"]
[BlackElo "2276"]
[TimeControl "180+1"]
[EndTime "10:41:04 PDT"]
[Termination "ALeks_Ivlev won on time"]

1. d4 {[%clk 0:03:00.3]} 1... Nf6 {[%clk 0:02:59.7]} 2. c4 {[%clk 0:03:00.2]}
2... e6 {[%clk 0:03:00.6]} 3. Nf3 {[%clk 0:02:58.2]} 3... d5 {[%clk 0:03:00.4]}
4. Nc3 {[%clk 0:02:58]} 4... Bb4 {[%clk 0:03:00.3]} 5. Qa4+ {[%clk 0:02:56.3]}
5... Nc6 {[%clk 0:02:59.7]} 6. e3 {[%clk 0:02:56.8]} 6... O-O {[%clk 0:02:58.7]}
7. Qc2 {[%clk 0:02:46.9]} 7... b6 {[%clk 0:02:58.3]} 8. cxd5 {[%clk 0:02:35.1]}
8... exd5 {[%clk 0:02:23.7]} 9. Bd3 {[%clk 0:02:33.4]} 9... a6 {[%clk
0:02:09.1]} 10. Ne5 {[%clk 0:02:23.7]} 10... Ne7 {[%clk 0:01:56.5]} 11. O-O
{[%clk 0:02:16.8]} 11... Bb7 {[%clk 0:01:48.8]} 12. f4 {[%clk 0:02:13.5]} 12...
c5 {[%clk 0:01:38.5]} 13. a3 {[%clk 0:02:12.3]} 13... Ba5 {[%clk 0:01:27.7]} 14.
Qe2 {[%clk 0:02:00.4]} 14... c4 {[%clk 0:01:22.9]} 15. Bc2 {[%clk 0:01:58.6]}
15... b5 {[%clk 0:01:20.2]} 16. Bd2 {[%clk 0:01:56.8]} 16... Bxc3 {[%clk
0:01:17.1]} 17. Bxc3 {[%clk 0:01:54.2]} 17... Ne4 {[%clk 0:01:18]} 18. Be1
{[%clk 0:01:25.2]} 18... f6 {[%clk 0:01:17.1]} 19. Nf3 {[%clk 0:01:25.1]} 19...
Nf5 {[%clk 0:01:15.9]} 20. g4 {[%clk 0:01:20.1]} 20... Nfd6 {[%clk 0:01:15.2]}
21. Kh1 {[%clk 0:01:18.6]} 21... Re8 {[%clk 0:01:14.9]} 22. Rg1 {[%clk
0:01:17.3]} 22... Bc8 {[%clk 0:01:15]} 23. Bh4 {[%clk 0:01:14.1]} 23... g5
{[%clk 0:00:52.1]} 24. fxg5 {[%clk 0:01:10.9]} 24... fxg5 {[%clk 0:00:53]} 25.
Be1 {[%clk 0:01:11.6]} 25... Qf6 {[%clk 0:00:47.5]} 26. Bb4 {[%clk 0:01:00.3]}
26... Be6 {[%clk 0:00:43.2]} 27. Raf1 {[%clk 0:00:59.6]} 27... Qh6 {[%clk
0:00:40.3]} 28. Ne5 {[%clk 0:00:36.3]} 28... Ra7 {[%clk 0:00:34.6]} 29. Qg2
{[%clk 0:00:29.5]} 29... Qh4 {[%clk 0:00:27.1]} 30. Rf3 {[%clk 0:00:24.1]} 30...
Rg7 {[%clk 0:00:21.8]} 31. Rgf1 {[%clk 0:00:22.6]} 31... Rge7 {[%clk 0:00:12.5]}
32. Bxe4 {[%clk 0:00:19]} 32... dxe4 {[%clk 0:00:12.7]} 33. Rf6 {[%clk
0:00:18.9]} 33... Nc8 {[%clk 0:00:07.3]} 34. Bxe7 {[%clk 0:00:17.9]} 34... Rxe7
{[%clk 0:00:07.7]} 35. Rf8+ {[%clk 0:00:17.9]} 35... Kg7 {[%clk 0:00:08]} 36.
Qf2 {[%clk 0:00:18]} 36... Qh6 {[%clk 0:00:07.2]} 37. Rg8+ {[%clk 0:00:13]}
37... Bxg8 {[%clk 0:00:05.3]} 38. Qf8+ {[%clk 0:00:13.4]} 38... Kh8 {[%clk
0:00:05.5]} 39. Qxh6 {[%clk 0:00:13.6]} 39... Rg7 {[%clk 0:00:04]} 40. Rf8
{[%clk 0:00:12.3]} 40... Ne7 {[%clk 0:00:03.6]} 41. Qf6 {[%clk 0:00:11.7]} 41...
Ng6 {[%clk 0:00:02.3]} 42. Nxg6+ {[%clk 0:00:11.4]} 42... hxg6 {[%clk
0:00:01.9]} 43. Re8 {[%clk 0:00:11.9]} 43... Kh7 {[%clk 0:00:02]} 44. Re7 {[%clk
0:00:12]} 1-0

[Event "*** Titled Tuesday Blitz"]
[Site "Chess.com"]
[Date "2020.05.05"]
[Round "4"]
[White "josiwales"]
[Black "ENEASZ"]
[Result "0-1"]
[WhiteElo "2684"]
[BlackElo "2495"]
[TimeControl "180+1"]
[EndTime "10:41:05 PDT"]
[Termination "ENEASZ won on time"]

1. e4 {[%clk 0:03:00.9]} 1... d6 {[%clk 0:02:59.9]} 2. d4 {[%clk 0:03:00.9]}
2... Nf6 {[%clk 0:03:00.4]} 3. Nc3 {[%clk 0:03:01.5]} 3... e5 {[%clk 0:03:01.1]}
4. Nf3 {[%clk 0:03:01.2]} 4... Nbd7 {[%clk 0:03:00.4]} 5. Rg1 {[%clk 0:03:01.8]}
5... g6 {[%clk 0:02:57.6]} 6. g4 {[%clk 0:03:01.9]} 6... Bg7 {[%clk 0:02:58.2]}
7. h4 {[%clk 0:03:02.2]} 7... O-O {[%clk 0:02:48.8]} 8. h5 {[%clk 0:03:00.5]}
8... exd4 {[%clk 0:02:40.6]} 9. Nxd4 {[%clk 0:02:59]} 9... Re8 {[%clk
0:02:40.8]} 10. f3 {[%clk 0:02:45.1]} 10... d5 {[%clk 0:02:25.7]} 11. hxg6
{[%clk 0:02:44.7]} 11... hxg6 {[%clk 0:02:24.4]} 12. Bg5 {[%clk 0:02:34.3]}
12... dxe4 {[%clk 0:02:04.2]} 13. f4 {[%clk 0:02:12.4]} 13... c6 {[%clk
0:01:38.1]} 14. Qd2 {[%clk 0:01:57.5]} 14... e3 {[%clk 0:01:11.2]} 15. Qh2
{[%clk 0:01:56]} 15... e2 {[%clk 0:01:11.5]} 16. Bxe2 {[%clk 0:01:52]} 16... Qb6
{[%clk 0:00:58.2]} 17. O-O-O {[%clk 0:01:49.7]} 17... Nf8 {[%clk 0:00:54.1]} 18.
f5 {[%clk 0:01:28.1]} 18... N6h7 {[%clk 0:00:51.3]} 19. f6 {[%clk 0:01:11.8]}
19... Nxg5 {[%clk 0:00:21.5]} 20. fxg7 {[%clk 0:01:10]} 20... Kxg7 {[%clk
0:00:22.4]} 21. Rh1 {[%clk 0:01:06.2]} 21... Nfh7 {[%clk 0:00:22.4]} 22. Bc4
{[%clk 0:00:57.3]} 22... c5 {[%clk 0:00:16.3]} 23. Qh6+ {[%clk 0:00:52.4]} 23...
Kg8 {[%clk 0:00:16.2]} 24. Nf3 {[%clk 0:00:48.4]} 24... Qf6 {[%clk 0:00:13.3]}
25. Nxg5 {[%clk 0:00:31.3]} 25... Qxg5+ {[%clk 0:00:13.3]} 26. Qxg5 {[%clk
0:00:25.5]} 26... Nxg5 {[%clk 0:00:14.2]} 27. Nd5 {[%clk 0:00:26.2]} 27... Kg7
{[%clk 0:00:11.8]} 28. Nc7 {[%clk 0:00:26.1]} 28... Bxg4 {[%clk 0:00:11.9]} 29.
Nxe8+ {[%clk 0:00:17.8]} 29... Rxe8 {[%clk 0:00:12.8]} 30. Rdg1 {[%clk
0:00:17.9]} 30... Bf3 {[%clk 0:00:13.3]} 31. Rh2 {[%clk 0:00:15.1]} 31... Ne4
{[%clk 0:00:11.1]} 32. Bd3 {[%clk 0:00:14.1]} 32... Nd6 {[%clk 0:00:10.3]} 33.
Rf2 {[%clk 0:00:13.6]} 33... Bd5 {[%clk 0:00:10.3]} 34. b3 {[%clk 0:00:13.6]}
34... Be6 {[%clk 0:00:10.1]} 35. c4 {[%clk 0:00:12.9]} 35... b6 {[%clk
0:00:10.1]} 36. Kc2 {[%clk 0:00:12.1]} 36... Re7 {[%clk 0:00:10.6]} 37. Kc3
{[%clk 0:00:10.5]} 37... Rd7 {[%clk 0:00:11]} 38. a4 {[%clk 0:00:08.1]} 38... a5
{[%clk 0:00:10.2]} 39. Rg3 {[%clk 0:00:07.6]} 39... Nc8 {[%clk 0:00:08.9]} 40.
Rf4 {[%clk 0:00:07.2]} 40... Ne7 {[%clk 0:00:09.2]} 41. Be4 {[%clk 0:00:06.6]}
41... Rd4 {[%clk 0:00:06.7]} 42. Re3 {[%clk 0:00:01.1]} 42... Nc8 {[%clk
0:00:02.6]} 43. Re1 {[%clk 0:00:01.5]} 43... Nd6 {[%clk 0:00:02.8]} 0-1

[Event "*** Titled Tuesday Blitz"]
[Site "Chess.com"]
[Date "2020.05.05"]
[Round "4"]
[White "VincentKeymer"]
[Black "AnishGiri"]
[Result "0-1"]
[WhiteElo "2719"]
[BlackElo "3056"]
[TimeControl "180+1"]
[EndTime "10:41:06 PDT"]
[Termination "AnishGiri won by resignation"]

1. Nf3 {[%clk 0:03:00.2]} 1... d5 {[%clk 0:02:59.5]} 2. e3 {[%clk 0:03:00.1]}
2... Nf6 {[%clk 0:02:59.3]} 3. c4 {[%clk 0:03:00]} 3... c6 {[%clk 0:02:58.9]} 4.
Nc3 {[%clk 0:03:00.3]} 4... e6 {[%clk 0:02:58.3]} 5. b3 {[%clk 0:03:00.6]} 5...
Bd6 {[%clk 0:02:58.5]} 6. Bb2 {[%clk 0:03:01.2]} 6... O-O {[%clk 0:02:58.3]} 7.
Qc2 {[%clk 0:02:59.1]} 7... b6 {[%clk 0:02:58.6]} 8. Rg1 {[%clk 0:02:54.2]} 8...
Bb7 {[%clk 0:02:57.5]} 9. g4 {[%clk 0:02:53.9]} 9... c5 {[%clk 0:02:57.5]} 10.
cxd5 {[%clk 0:02:48.3]} 10... exd5 {[%clk 0:02:53.5]} 11. g5 {[%clk 0:02:48.1]}
11... Nh5 {[%clk 0:02:29.8]} 12. Bd3 {[%clk 0:02:25.6]} 12... g6 {[%clk
0:02:29.6]} 13. Ne2 {[%clk 0:02:20.9]} 13... d4 {[%clk 0:02:29.5]} 14. Be4
{[%clk 0:02:20]} 14... Qe7 {[%clk 0:02:20.9]} 15. Bxb7 {[%clk 0:02:04.7]} 15...
Qxb7 {[%clk 0:02:21.8]} 16. Nh4 {[%clk 0:01:59.2]} 16... Nc6 {[%clk 0:02:18.2]}
17. a3 {[%clk 0:01:56.5]} 17... Ne5 {[%clk 0:02:05.8]} 18. exd4 {[%clk
0:01:42.4]} 18... cxd4 {[%clk 0:02:02.9]} 19. Bxd4 {[%clk 0:01:40.3]} 19... Rac8
{[%clk 0:02:02.2]} 20. Qb1 {[%clk 0:01:38.2]} 20... Rfe8 {[%clk 0:01:47.4]} 21.
Be3 {[%clk 0:01:35.7]} 21... Nf3+ {[%clk 0:01:41.8]} 22. Nxf3 {[%clk 0:01:33.8]}
22... Qxf3 {[%clk 0:01:42.7]} 23. Ng3 {[%clk 0:01:21.2]} 23... Be5 {[%clk
0:01:02.4]} 24. Qd1 {[%clk 0:01:14.7]} 24... Qd5 {[%clk 0:01:01.6]} 25. Nxh5
{[%clk 0:01:08.5]} 25... Bxa1 {[%clk 0:00:55.9]} 26. Qxa1 {[%clk 0:01:07]} 26...
gxh5 {[%clk 0:00:55.4]} 27. b4 {[%clk 0:00:53.4]} 27... Rc4 {[%clk 0:00:51]} 28.
Ke2 {[%clk 0:00:46.4]} 28... Qb5 {[%clk 0:00:43.4]} 29. Kf3 {[%clk 0:00:38.1]}
29... Rh4 {[%clk 0:00:35.1]} 30. Qf6 {[%clk 0:00:27.9]} 30... Qd5+ {[%clk
0:00:35]} 31. Ke2 {[%clk 0:00:27.4]} 31... Re6 {[%clk 0:00:34.5]} 32. Qb2 {[%clk
0:00:20]} 32... Rc4 {[%clk 0:00:30.8]} 33. Rc1 {[%clk 0:00:19.9]} 33... Rxc1
{[%clk 0:00:28.3]} 34. Qxc1 {[%clk 0:00:20.8]} 34... Rc6 {[%clk 0:00:28.7]} 35.
Qb2 {[%clk 0:00:21]} 35... Qc4+ {[%clk 0:00:28.7]} 36. d3 {[%clk 0:00:17.3]}
36... Qc2+ {[%clk 0:00:28.8]} 37. Qxc2 {[%clk 0:00:17.9]} 37... Rxc2+ {[%clk
0:00:29.5]} 38. Kf3 {[%clk 0:00:18.6]} 38... Kf8 {[%clk 0:00:24.4]} 39. a4
{[%clk 0:00:18.3]} 39... Ra2 {[%clk 0:00:23.1]} 40. a5 {[%clk 0:00:18.7]} 40...
bxa5 {[%clk 0:00:23.1]} 41. Bxa7 {[%clk 0:00:19.3]} 41... a4 {[%clk 0:00:22]}
42. b5 {[%clk 0:00:19.2]} 42... Rb2 {[%clk 0:00:19.1]} 43. Bc5+ {[%clk
0:00:19.7]} 43... Ke8 {[%clk 0:00:19.6]} 44. b6 {[%clk 0:00:20.3]} 44... Kd7
{[%clk 0:00:19.3]} 45. Ke4 {[%clk 0:00:20.5]} 45... Kc6 {[%clk 0:00:17.7]} 46.
d4 {[%clk 0:00:18.5]} 46... Rxf2 {[%clk 0:00:16.9]} 47. h4 {[%clk 0:00:17.7]}
47... Rh2 {[%clk 0:00:15.9]} 48. Kd3 {[%clk 0:00:16.4]} 48... Rxh4 {[%clk
0:00:14.5]} 49. Kc4 {[%clk 0:00:17.3]} 49... Rg4 {[%clk 0:00:15.1]} 50. Kb4
{[%clk 0:00:17.2]} 50... h4 {[%clk 0:00:15.5]} 51. Ka5 {[%clk 0:00:16.6]} 51...
Kb7 {[%clk 0:00:14.9]} 0-1

[Event "*** Titled Tuesday Blitz"]
[Site "Chess.com"]
[Date "2020.05.05"]
[Round "4"]
[White "zubridis"]
[Black "Mikozovna"]
[Result "1-0"]
[WhiteElo "2453"]
[BlackElo "2255"]
[TimeControl "180+1"]
[EndTime "10:41:06 PDT"]
[Termination "zubridis won on time"]

1. e4 {[%clk 0:02:56]} 1... c5 {[%clk 0:02:59.4]} 2. Nf3 {[%clk 0:02:51.1]} 2...
d6 {[%clk 0:02:58.3]} 3. d4 {[%clk 0:02:49.1]} 3... cxd4 {[%clk 0:02:59.2]} 4.
Qxd4 {[%clk 0:02:49.2]} 4... Nc6 {[%clk 0:02:58.3]} 5. Bb5 {[%clk 0:02:48.9]}
5... Bd7 {[%clk 0:02:58.5]} 6. Bxc6 {[%clk 0:02:48.4]} 6... Bxc6 {[%clk
0:02:58.8]} 7. Nc3 {[%clk 0:02:47.9]} 7... Nf6 {[%clk 0:02:58.7]} 8. Bg5 {[%clk
0:02:48]} 8... e6 {[%clk 0:02:49.6]} 9. O-O-O {[%clk 0:02:47.7]} 9... Be7 {[%clk
0:02:42.2]} 10. Qd3 {[%clk 0:02:44.9]} 10... O-O {[%clk 0:02:36.9]} 11. Nd4
{[%clk 0:02:44.5]} 11... Bd7 {[%clk 0:02:25.8]} 12. f4 {[%clk 0:02:42.6]} 12...
h6 {[%clk 0:02:23.3]} 13. h4 {[%clk 0:02:43]} 13... Rc8 {[%clk 0:02:19.2]} 14.
Nde2 {[%clk 0:02:13.4]} 14... Bc6 {[%clk 0:02:06.7]} 15. Bxf6 {[%clk 0:02:00.1]}
15... Bxf6 {[%clk 0:02:03]} 16. g4 {[%clk 0:02:00.5]} 16... Bxh4 {[%clk
0:01:33.5]} 17. Kb1 {[%clk 0:01:53.9]} 17... Bf6 {[%clk 0:01:30.8]} 18. g5
{[%clk 0:01:49.3]} 18... Bxc3 {[%clk 0:01:26.1]} 19. Nxc3 {[%clk 0:01:47.4]}
19... Qb6 {[%clk 0:01:20.9]} 20. Qg3 {[%clk 0:01:12]} 20... d5 {[%clk
0:01:03.9]} 21. Rxh6 {[%clk 0:01:06.9]} 21... Rfd8 {[%clk 0:00:58.3]} 22. f5
{[%clk 0:00:16.4]} 22... gxh6 {[%clk 0:00:30]} 23. gxh6+ {[%clk 0:00:15.1]}
23... Kf8 {[%clk 0:00:30.1]} 24. fxe6 {[%clk 0:00:15]} 24... Ke7 {[%clk
0:00:15.3]} 25. exd5 {[%clk 0:00:13.9]} 25... Be8 {[%clk 0:00:12.2]} 26. Qg5+
{[%clk 0:00:13.4]} 26... Kd6 {[%clk 0:00:12.2]} 27. Qf4+ {[%clk 0:00:13.1]}
27... Ke7 {[%clk 0:00:10.1]} 28. Qh4+ {[%clk 0:00:12.6]} 28... Kd6 {[%clk
0:00:10]} 29. Qf4+ {[%clk 0:00:10.6]} 29... Ke7 {[%clk 0:00:08.9]} 30. Qg5+
{[%clk 0:00:09.9]} 30... Kd6 {[%clk 0:00:08.6]} 31. h7 {[%clk 0:00:09.4]} 31...
Bb5 {[%clk 0:00:06]} 32. Ne4+ {[%clk 0:00:09.1]} 32... Kc7 {[%clk 0:00:05.2]}
33. e7 {[%clk 0:00:08.3]} 33... Re8 {[%clk 0:00:04.9]} 34. d6+ {[%clk
0:00:08.1]} 34... Kb8 {[%clk 0:00:05]} 35. Qe5 {[%clk 0:00:07.4]} 35... Bd7
{[%clk 0:00:05.9]} 36. Nf6 {[%clk 0:00:07]} 36... Qc6 {[%clk 0:00:05]} 37. c3
{[%clk 0:00:06.4]} 37... Rh8 {[%clk 0:00:03.6]} 38. Rg1 {[%clk 0:00:03.1]} 38...
Be6 {[%clk 0:00:02.5]} 39. Re1 {[%clk 0:00:02.8]} 39... Qc4 {[%clk 0:00:01.4]}
40. d7+ {[%clk 0:00:02.5]} 1-0

[Event "*** Titled Tuesday Blitz"]
[Site "Chess.com"]
[Date "2020.05.05"]
[Round "4"]
[White "zmeeed67"]
[Black "Efremov_Vlad"]
[Result "0-1"]
[WhiteElo "2382"]
[BlackElo "2136"]
[TimeControl "180+1"]
[EndTime "10:41:06 PDT"]
[Termination "Efremov_Vlad won on time"]

1. d4 {[%clk 0:03:00.9]} 1... d5 {[%clk 0:02:59.3]} 2. c4 {[%clk 0:03:01.4]}
2... e6 {[%clk 0:02:59.5]} 3. Nc3 {[%clk 0:03:01.8]} 3... Nf6 {[%clk 0:02:59.5]}
4. cxd5 {[%clk 0:03:02.2]} 4... Nxd5 {[%clk 0:02:59.1]} 5. e4 {[%clk 0:03:01.3]}
5... Nxc3 {[%clk 0:02:58.6]} 6. bxc3 {[%clk 0:03:02.2]} 6... c5 {[%clk
0:02:58.8]} 7. Nf3 {[%clk 0:03:02.7]} 7... cxd4 {[%clk 0:02:58.6]} 8. cxd4
{[%clk 0:03:03.6]} 8... Bb4+ {[%clk 0:02:58.8]} 9. Bd2 {[%clk 0:03:04.1]} 9...
Bxd2+ {[%clk 0:02:59.3]} 10. Qxd2 {[%clk 0:03:04.9]} 10... O-O {[%clk
0:02:58.8]} 11. Rd1 {[%clk 0:03:02]} 11... b6 {[%clk 0:02:51.1]} 12. Bd3 {[%clk
0:03:01.5]} 12... Bb7 {[%clk 0:02:50.3]} 13. O-O {[%clk 0:03:00.7]} 13... Nd7
{[%clk 0:02:49.5]} 14. Rfe1 {[%clk 0:03:00]} 14... Rc8 {[%clk 0:02:44.6]} 15.
Bb1 {[%clk 0:02:58.3]} 15... Nf6 {[%clk 0:02:33.3]} 16. Qf4 {[%clk 0:02:53]}
16... Qc7 {[%clk 0:02:23.4]} 17. Qh4 {[%clk 0:02:40.9]} 17... h6 {[%clk
0:02:19.5]} 18. Re3 {[%clk 0:02:21]} 18... Rfd8 {[%clk 0:02:06.3]} 19. h3 {[%clk
0:01:41.4]} 19... b5 {[%clk 0:01:22.7]} 20. Ne5 {[%clk 0:01:08.6]} 20... Rxd4
{[%clk 0:00:32.5]} 21. Rxd4 {[%clk 0:01:03]} 21... Qxe5 {[%clk 0:00:32.4]} 22.
Rd1 {[%clk 0:00:58]} 22... a5 {[%clk 0:00:31.2]} 23. f4 {[%clk 0:00:38.5]} 23...
Qc5 {[%clk 0:00:30]} 24. Qf2 {[%clk 0:00:36.7]} 24... b4 {[%clk 0:00:20.5]} 25.
Re2 {[%clk 0:00:27.1]} 25... Qb5 {[%clk 0:00:10.3]} 26. Rc2 {[%clk 0:00:21.6]}
26... Rxc2 {[%clk 0:00:07.9]} 27. Bxc2 {[%clk 0:00:22.5]} 27... g6 {[%clk
0:00:05]} 28. Rd8+ {[%clk 0:00:16]} 28... Kg7 {[%clk 0:00:04.9]} 29. Qd4 {[%clk
0:00:16]} 29... a4 {[%clk 0:00:03.4]} 30. g4 {[%clk 0:00:13.2]} 30... b3 {[%clk
0:00:03.8]} 31. axb3 {[%clk 0:00:13.1]} 31... axb3 {[%clk 0:00:03.9]} 32. Bb1
{[%clk 0:00:08.7]} 32... b2 {[%clk 0:00:03.5]} 33. h4 {[%clk 0:00:04.4]} 33...
Qe2 {[%clk 0:00:03.6]} 34. g5 {[%clk 0:00:01.9]} 34... Qe1+ {[%clk 0:00:02.9]}
35. Kh2 {[%clk 0:00:01.8]} 35... Qe2+ {[%clk 0:00:03]} 36. Kg1 {[%clk
0:00:01.9]} 36... Qe1+ {[%clk 0:00:03.4]} 37. Kg2 {[%clk 0:00:02.3]} 37... Qe2+
{[%clk 0:00:03.5]} 38. Qf2 {[%clk 0:00:02.8]} 38... Qxf2+ {[%clk 0:00:03.8]} 39.
Kxf2 {[%clk 0:00:03.7]} 39... Nxe4+ {[%clk 0:00:04.1]} 40. Bxe4 {[%clk
0:00:03.8]} 40... Bxe4 {[%clk 0:00:04.1]} 41. gxh6+ {[%clk 0:00:03.2]} 41...
Kxh6 {[%clk 0:00:04.1]} 0-1

[Event "*** Titled Tuesday Blitz"]
[Site "Chess.com"]
[Date "2020.05.05"]
[Round "4"]
[White "M1711"]
[Black "RaunakSadhwani2005"]
[Result "0-1"]
[WhiteElo "2541"]
[BlackElo "2868"]
[TimeControl "180+1"]
[EndTime "10:41:08 PDT"]
[Termination "RaunakSadhwani2005 won by resignation"]

1. d4 {[%clk 0:03:00.9]} 1... Nf6 {[%clk 0:03:00]} 2. c4 {[%clk 0:03:00.7]} 2...
Nc6 {[%clk 0:03:00.1]} 3. Nf3 {[%clk 0:02:59.5]} 3... e6 {[%clk 0:03:00]} 4. Nc3
{[%clk 0:02:59.6]} 4... Bb4 {[%clk 0:02:59.6]} 5. Qc2 {[%clk 0:03:00.2]} 5... d6
{[%clk 0:02:56.9]} 6. Bd2 {[%clk 0:03:00]} 6... Qe7 {[%clk 0:02:54.5]} 7. a3
{[%clk 0:02:55.1]} 7... Bxc3 {[%clk 0:02:54.3]} 8. Bxc3 {[%clk 0:02:56]} 8... e5
{[%clk 0:02:54]} 9. dxe5 {[%clk 0:02:52.8]} 9... dxe5 {[%clk 0:02:51]} 10. e3
{[%clk 0:02:49.1]} 10... a5 {[%clk 0:02:47.2]} 11. Be2 {[%clk 0:02:46.4]} 11...
a4 {[%clk 0:02:46.3]} 12. O-O {[%clk 0:02:45.2]} 12... O-O {[%clk 0:02:46.2]}
13. Rad1 {[%clk 0:02:41]} 13... Bg4 {[%clk 0:02:44.8]} 14. Rd2 {[%clk
0:02:16.4]} 14... Nd7 {[%clk 0:02:34.6]} 15. Rfd1 {[%clk 0:01:57.1]} 15... f6
{[%clk 0:02:17.8]} 16. Nh4 {[%clk 0:01:53.2]} 16... Bxe2 {[%clk 0:02:11.5]} 17.
Rxd7 {[%clk 0:01:50.6]} 17... Bxd1 {[%clk 0:02:08.3]} 18. Qxd1 {[%clk 0:01:38]}
18... Rad8 {[%clk 0:01:51]} 19. Rd5 {[%clk 0:01:00.3]} 19... Qc5 {[%clk
0:00:46.1]} 20. Qd3 {[%clk 0:00:29.1]} 20... Rxd5 {[%clk 0:00:40.9]} 21. cxd5
{[%clk 0:00:28.1]} 21... Ne7 {[%clk 0:00:40.7]} 22. e4 {[%clk 0:00:20.6]} 22...
Rd8 {[%clk 0:00:39.8]} 23. g4 {[%clk 0:00:15.9]} 23... c6 {[%clk 0:00:30.2]} 24.
Bb4 {[%clk 0:00:15.9]} 24... Qc1+ {[%clk 0:00:29.9]} 25. Kg2 {[%clk 0:00:16.4]}
25... Ng6 {[%clk 0:00:29.8]} 26. Nxg6 {[%clk 0:00:11.5]} 26... hxg6 {[%clk
0:00:30.7]} 27. d6 {[%clk 0:00:10.5]} 27... Qxb2 {[%clk 0:00:19.7]} 28. Qc4+
{[%clk 0:00:10.4]} 28... Kh7 {[%clk 0:00:19.2]} 29. Qe6 {[%clk 0:00:04.2]} 29...
Qd4 {[%clk 0:00:19.5]} 30. f3 {[%clk 0:00:01.8]} 30... c5 {[%clk 0:00:19.5]} 31.
Qe7 {[%clk 0:00:02]} 31... Qxd6 {[%clk 0:00:18.8]} 32. Qxd6 {[%clk 0:00:01.6]}
32... Rxd6 {[%clk 0:00:19.7]} 33. Bxc5 {[%clk 0:00:02.5]} 33... Rd2+ {[%clk
0:00:19.8]} 34. Kg3 {[%clk 0:00:03.1]} 34... Rd3 {[%clk 0:00:20.2]} 35. h4
{[%clk 0:00:02.5]} 35... Rb3 {[%clk 0:00:20.4]} 36. Bd6 {[%clk 0:00:02.4]} 36...
b5 {[%clk 0:00:20.1]} 37. g5 {[%clk 0:00:02.9]} 37... b4 {[%clk 0:00:17.1]} 38.
gxf6 {[%clk 0:00:03.4]} 38... gxf6 {[%clk 0:00:16.6]} 39. Be7 {[%clk 0:00:01.7]}
39... bxa3 {[%clk 0:00:16.2]} 40. Bxf6 {[%clk 0:00:01.9]} 40... Rb5 {[%clk
0:00:16.6]} 41. f4 {[%clk 0:00:02.5]} 41... a2 {[%clk 0:00:16.7]} 42. Bxe5
{[%clk 0:00:02.1]} 42... Rxe5 {[%clk 0:00:16.8]} 43. fxe5 {[%clk 0:00:03]} 0-1